bitfinex/quotes_ETHUSD_20260107
["timestamp","ask_amount","ask_price","bid_price","bid_amount"]
[1767747803763,0.99195776,3261.7,3260.7,3.06679119]
[1767747803764,1.0302825,3261.6,3260.7,3.06679119]
[1767747804138,1.0302825,3261.6,3260.4,0.803]
[1767747804347,1.0302825,3261.6,3260.5,3.06696289]
[1767747804757,0.99195776,3261.5,3260.5,3.06696289]
[1767747804951,0.99195776,3261.3,3260.5,3.06696289]
[1767747805172,0.99195776,3261.1,3260.3,3.06718755]
[1767747805371,0.99195776,3261.1,3260.3,6.13438995]
[1767747805573,0.18332825,3261.4,3260.4,0.98621125]
[1767747805775,4.86097568,3261.6,3260.5,0.03067014]
[1767747806269,4.86097568,3261.6,3260.5,1.01688139]
[1767747806971,0.99195776,3261.5,3260.5,0.03067014]
[1767747807165,4.05808427,3261.5,3260.8,0.002]
[1767747807363,1.03028485,3261.4,3260.8,0.002]
[1767747807570,0.001,3261.3,3260.8,0.002]
[1767747811674,0.001,3261.3,3260.8,0.99716229]
[1767747812751,0.001,3261.3,3260.8,0.002]
[1767747812954,0.03932827,3261.3,3260.8,0.002]
[1767747815155,0.96763693,3261.3,3260.8,0.002]
[1767747815356,0.03832944,3261.2,3260.8,0.002]
[1767747816089,1.00496637,3261.2,3260.8,0.002]
[1767747817186,0.03832944,3261.2,3260.8,0.002]
[1767747817379,0.001,3261.3,3260.8,0.002]
[1767747817882,0.96663693,3261.2,3260.5,0.002]
[1767747818079,0.96663693,3261.0,3260.5,0.002]
[1767747818600,0.44172051,3261.1,3260.5,0.002]
[1767747819090,0.40338989,3261.1,3260.5,0.002]
[1767747820393,3.46987042,3261.1,3260.5,0.002]
[1767747821194,3.46987042,3261.1,3260.8,0.002]
[1767747821395,0.38531884,3261.0,3260.8,0.002]
[1767747821586,0.001,3260.9,3260.8,0.002]
[1767747823689,0.96763693,3260.9,3260.8,0.002]
[1767747823893,0.96763693,3260.9,3260.5,0.002]
[1767747826059,1.00497108,3260.8,3260.5,0.002]
[1767747826262,0.96663693,3260.8,3260.5,0.002]
[1767747827073,0.001,3260.9,3260.5,0.002]
[1767747828877,0.001,3261.3,3260.6,0.99516229]
[1767747829889,0.001,3261.3,3260.7,0.99516229]
[1767747830796,0.03932827,3261.3,3260.7,0.99516229]
[1767747831097,0.03832239,3261.8,3261.0,0.99516229]
[1767747831299,0.03832357,3261.7,3260.9,0.803]
[1767747831595,0.44548985,3261.7,3260.7,0.99516229]
[1767747831794,3.06597988,3261.6,3260.7,0.99516229]
[1767747831972,0.03832592,3261.5,3260.7,0.99516229]
[1767747832173,0.96663693,3261.4,3260.5,0.002]
[1767747832371,1.0049652,3261.3,3260.5,0.002]
[1767747832599,1.0049652,3261.3,3259.8,0.99516229]
[1767747832783,1.0049652,3261.3,3259.6,0.805]
[1767747832988,1.0049652,3261.3,3259.6,0.002]
[1767747833694,0.96663693,3260.9,3259.6,0.002]
[1767747833888,0.96663693,3260.7,3259.6,0.002]
[1767747834082,0.96663693,3260.5,3259.6,0.002]
[1767747836105,4.03373448,3260.5,3259.6,0.002]
[1767747836303,3.06709755,3260.5,3259.6,0.99716229]
[1767747836687,6.1341951,3260.5,3259.6,0.002]
[1767747836886,0.63149922,3260.4,3259.6,0.002]
[1767747838175,3.0672024,3260.3,3259.6,0.002]
[1767747839908,3.69862188,3260.4,3259.6,0.002]
[1767747840206,1.58581329,3260.4,3259.6,0.002]
[1767747840588,0.63149922,3260.4,3259.6,3.0698468]
[1767747840897,0.46528652,3260.3,3259.6,3.0698468]
[1767747841501,0.46528652,3260.3,3259.6,0.002]
[1767747842211,0.46528652,3260.3,3259.6,0.91252716]
[1767747843002,0.0383412,3260.2,3259.6,0.91252716]
[1767747843277,4.47613876,3259.8,3259.3,0.002]
[1767747843486,4.47613876,3259.5,3258.9,0.002]
[1767747843783,0.97067704,3259.4,3258.9,0.002]
[1767747843984,0.97067704,3260.0,3258.9,0.002]
[1767747844192,5.4468158,3259.8,3258.9,0.002]
[1767747844385,3.61244855,3259.7,3258.9,0.002]
[1767747845284,6.68021552,3259.7,3258.9,0.002]
[1767747845610,0.54468158,3259.7,3258.9,0.002]
[1767747846402,3.61245671,3259.7,3258.9,0.002]
[1767747846803,6.68023184,3259.7,3258.9,0.002]
[1767747847007,0.84539089,3259.6,3258.9,0.002]
[1767747847526,0.88373915,3259.6,3258.9,0.002]
[1767747847728,1.85441619,3259.6,3258.9,0.002]
[1767747847892,0.97067704,3259.5,3258.9,0.002]
[1767747848091,0.97067704,3259.5,3258.6,0.002]
[1767747848304,0.18544162,3259.4,3258.6,0.002]
[1767747848502,3.06814346,3259.3,3258.6,0.002]
[1767747848931,3.25353103,3259.4,3258.6,0.002]
[1767747849723,6.32162044,3259.4,3258.6,0.002]
[1767747849894,3.25353103,3259.4,3258.6,0.002]
[1767747850097,0.42242081,3259.3,3258.6,0.002]
[1767747851715,0.42242081,3259.3,3258.6,0.91252716]
[1767747851914,3.49064172,3259.3,3258.6,0.91252716]
[1767747852105,3.52899351,3259.3,3258.6,0.91252716]
[1767747852819,3.52899351,3259.3,3258.6,0.002]
[1767747853027,0.67824967,3259.2,3258.6,0.002]
[1767747853707,0.03835414,3259.1,3258.6,0.002]
[1767747853903,1.00903118,3259.1,3258.6,0.002]
[1767747854711,0.97067704,3259.1,3258.6,0.002]
[1767747855229,0.18544162,3259.4,3258.6,0.002]
[1767747855416,1.77367704,3259.8,3258.6,0.91252716]
[1767747855602,0.03834708,3259.7,3258.6,1.71552716]
[1767747856421,1.77367704,3259.8,3258.6,1.71552716]
[1767747856699,3.06751829,3260.0,3258.7,0.91052716]
[1767747857064,0.803,3260.2,3258.9,0.91052716]
[1767747857237,0.001,3261.0,3259.2,0.91052716]
[1767747857536,0.001,3261.0,3259.6,0.91052716]
[1767747857840,0.001,3261.0,3259.8,0.91052716]
[1767747858000,0.001,3261.0,3260.0,0.91052716]
[1767747858207,0.001,3260.7,3260.2,0.91052716]
[1767747859031,0.001,3260.7,3260.3,3.0672024]
[1767747859806,0.001,3260.7,3260.3,3.97772956]
[1767747860604,0.001,3260.7,3260.3,0.91052716]
[1767747860808,0.001,3260.7,3259.9,3.0675117]
[1767747861245,0.001,3260.7,3259.6,0.91052716]
[1767747861445,0.001,3260.7,3259.7,3.06773637]
[1767747861609,0.001,3260.7,3259.6,0.91052716]
[1767747861812,0.03933532,3260.7,3259.3,0.803]
[1767747862016,0.22063656,3260.7,3259.3,0.803]
[1767747862216,0.22063656,3260.7,3259.5,3.06791418]
[1767747862843,0.22063656,3260.7,3258.9,6.1370401]
[1767747862844,0.97067704,3260.5,3258.9,6.1370401]
[1767747863035,1.00901589,3260.4,3259.0,0.803]
[1767747863231,0.803,3260.3,3259.0,0.803]
[1767747863542,0.21954279,3260.2,3259.1,0.91052716]
[1767747863752,0.03834238,3260.1,3259.1,0.91052716]
[1767747863917,0.03834238,3260.1,3259.0,0.803]
[1767747864939,0.03834238,3260.1,3258.9,6.1370401]
[1767747865217,0.03834238,3260.1,3259.0,0.803]
[1767747865420,0.32868948,3260.0,3259.0,0.803]
[1767747865619,0.03834473,3259.9,3259.1,0.91052716]
[1767747865821,0.0383412,3260.2,3259.2,0.94120953]
[1767747866045,3.06701426,3260.5,3259.3,0.803]
[1767747866219,0.03833885,3260.4,3259.3,0.803]
[1767747866821,0.03833885,3260.4,3259.4,0.91052716]
[1767747867021,0.31053531,3260.3,3259.4,0.91052716]
[1767747867243,0.31053531,3260.3,3259.5,3.0679552]
[1767747867552,0.18230124,3260.7,3259.5,3.0679552]
[1767747867553,0.001,3260.7,3259.6,0.91052716]
[1767747867736,0.001,3260.7,3259.6,0.95042894]
[1767747867923,0.001,3260.7,3259.6,0.98110755]
[1767747868122,0.001,3260.7,3259.9,0.91052716]
[1767747868329,0.001,3260.7,3260.1,0.91052716]
[1767747868540,0.001,3260.7,3260.3,0.91052716]
[1767747868852,0.001,3261.0,3260.3,0.91052716]
[1767747869217,0.001,3261.0,3260.5,0.91052716]
[1767747869744,0.001,3261.0,3260.5,1.71352716]
[1767747871144,0.001,3261.0,3260.6,0.91052716]
[1767747871452,0.001,3261.0,3260.8,3.06673209]
[1767747872251,0.001,3261.0,3260.7,3.23814992]
[1767747872438,0.03832592,3261.5,3260.8,0.91827217]
[1767747872620,3.06673309,3261.9,3260.8,0.91827217]
[1767747872825,3.06673309,3261.9,3260.9,0.91827217]
[1767747872826,3.6838012,3261.9,3260.9,0.91827217]
[1767747873023,0.61806811,3261.9,3260.9,0.91827217]
[1767747873345,0.001,3261.9,3260.9,0.91827217]
[1767747873548,0.001,3261.9,3261.0,3.066544]
[1767747873949,0.97177978,3261.9,3261.0,3.066544]
[1767747874148,0.97177978,3261.9,3260.9,3.06661065]
[1767747874321,0.97077978,3261.7,3260.9,3.06661065]
[1767747874524,0.03832474,3261.6,3260.9,3.06661065]
[1767747874944,0.03832474,3261.6,3260.9,3.06663667]
[1767747875146,0.97077978,3261.7,3260.9,3.8496485]
[1767747875737,0.97077978,3261.7,3260.9,6.91628654]
[1767747876144,0.001,3261.9,3260.9,6.91628654]
[1767747877151,0.001,3261.9,3260.9,3.8496485]
[1767747877152,3.06671052,3261.9,3260.9,3.8496485]
[1767747877354,1.00910217,3261.8,3260.9,0.78301183]
[1767747877531,1.00910217,3261.8,3260.8,3.86968923]
[1767747877727,0.97077978,3261.7,3260.8,3.86968923]
[1767747878134,0.001,3261.9,3260.8,6.93642132]
[1767747878460,0.001,3261.9,3260.9,0.91827217]
[1767747878838,0.03932122,3261.9,3260.9,0.91827217]
[1767747879033,0.03932122,3261.9,3260.9,1.72087679]
[1767747879968,0.001,3261.9,3261.0,3.066544]
[1767747880135,0.001,3261.9,3261.0,7.05136017]
[1767747880331,0.03932122,3261.9,3261.0,7.05136017]
[1767747880663,0.001,3261.9,3261.1,0.91827217]
[1767747880834,0.001,3261.9,3261.2,0.70513602]
[1767747881232,0.001,3261.9,3261.1,0.91827217]
[1767747881233,0.03932122,3261.9,3261.1,0.91827217]
[1767747881633,0.001,3261.6,3261.1,0.91827217]
[1767747882031,0.001,3261.6,3261.1,3.98467185]
[1767747882228,0.001,3261.6,3261.1,7.05112182]
[1767747883866,0.001,3261.6,3261.1,6.13284965]
[1767747884034,0.001,3261.6,3261.2,0.61328496]
[1767747887244,0.001,3261.6,3261.4,3.0661679]
[1767747887561,0.001,3261.6,3261.3,3.09687988]
[1767747887745,0.001,3261.6,3261.3,3.06621727]
[1767747891278,0.001,3261.6,3261.4,0.03066167]
[1767747891483,0.001,3261.6,3261.3,3.98448944]
[1767747891684,0.001,3261.6,3261.4,0.79707454]
[1767747891883,0.001,3261.6,3261.4,0.76641287]
[1767747892183,0.001,3261.6,3261.4,1.71534671]
[1767747892388,0.001,3261.6,3261.4,1.68468504]
[1767747892676,0.001,3261.6,3261.4,4.75082135]
[1767747892846,0.001,3261.6,3261.5,1.3933543]
[1767747893046,0.001,3261.9,3261.6,0.91827217]
[1767747893464,0.001,3261.9,3261.5,0.47508213]
[1767747893865,0.001,3261.9,3260.9,0.80260462]
[1767747893866,0.97177978,3261.9,3260.9,0.80260462]
[1767747894053,0.97077978,3261.7,3260.9,0.803]
[1767747894260,0.97077978,3261.5,3261.0,3.06648053]
[1767747894486,0.97077978,3261.8,3260.8,1.72127217]
[1767747894668,0.03832357,3261.7,3260.9,3.06663804]
[1767747894862,0.001,3261.4,3260.9,3.06663804]
[1767747895061,0.001,3261.4,3261.0,0.78546379]
[1767747896454,0.03832239,3261.8,3261.0,0.78546379]
[1767747896650,0.001,3261.9,3261.1,3.06644997]
[1767747897153,0.001,3261.9,3261.1,7.05117211]
[1767747897351,0.001,3261.9,3261.3,0.91827217]
[1767747897752,0.001,3261.9,3261.3,1.72127217]
[1767747898552,0.001,3261.9,3261.3,0.91827217]
[1767747899180,0.001,3261.9,3261.4,3.0661679]
[1767747900454,0.001,3261.9,3261.3,3.98453322]
[1767747900661,0.001,3261.9,3261.3,0.803]
[1767747900662,0.03932122,3261.9,3261.3,0.803]
[1767747900991,0.97077978,3261.8,3260.6,0.91827217]
[1767747901154,4.03685367,3261.5,3260.3,0.91827217]
[1767747901359,1.37446515,3261.4,3260.3,0.91827217]
[1767747901559,1.37446515,3261.4,3260.3,3.98541586]
[1767747901786,0.90672996,3261.3,3260.0,0.90705805]
[1767747901977,0.90672996,3261.2,3260.1,3.06737644]
[1767747902589,0.90672996,3261.2,3260.1,3.06738697]
[1767747902794,0.803,3261.3,3259.7,3.06774568]
[1767747902795,1.07770296,3261.1,3259.7,3.06774568]
[1767747903002,0.90672996,3261.1,3259.3,3.06810747]
[1767747903169,0.90672996,3260.9,3259.3,3.06810747]
[1767747904596,0.90672996,3260.9,3259.3,6.13625093]
[1767747904792,0.99259187,3260.7,3259.4,0.03068049]
[1767747904974,0.99259187,3260.7,3259.3,6.83017602]
[1767747905170,0.99259187,3260.5,3258.6,0.002]
[1767747905374,0.99259187,3260.3,3258.6,0.805]
[1767747905591,0.99259187,3260.3,3258.7,0.03068708]
[1767747906184,1.79559187,3260.3,3258.8,0.94426057]
[1767747906389,1.79559187,3260.3,3258.9,0.97494577]
[1767747906588,0.803,3260.3,3258.9,0.97494577]
[1767747907000,0.803,3260.3,3259.1,0.94426057]
[1767747907206,1.49671055,3260.3,3259.1,1.74726057]
[1767747907516,3.06729648,3260.2,3259.2,3.0682376]
[1767747907699,4.56394015,3260.3,3259.2,3.0682376]
[1767747908485,1.49671055,3260.3,3259.2,6.1364752]
[1767747908681,0.803,3260.3,3259.2,7.11141814]
[1767747909011,0.803,3260.3,3259.2,7.08073577]
[1767747909517,0.803,3260.3,3259.3,0.94426057]
[1767747909879,3.87020835,3260.3,3259.3,0.94426057]
[1767747910285,0.99259187,3260.2,3259.2,3.0682376]
[1767747910510,0.99259187,3260.1,3259.0,0.002]
[1767747911497,0.99259187,3259.9,3259.0,0.002]
[1767747911697,0.99259187,3259.7,3259.0,0.002]
[1767747912101,0.99259187,3259.7,3258.6,0.002]
[1767747912285,0.17955919,3259.6,3258.6,0.002]
[1767747912486,1.17215106,3259.6,3258.6,0.002]
[1767747913604,4.06054707,3259.5,3258.6,0.002]
[1767747913902,7.12850227,3259.5,3258.6,0.002]
[1767747914119,0.99259187,3259.4,3258.6,0.002]
[1767747914324,0.99259187,3259.2,3258.6,0.002]
[1767747915018,0.71285023,3259.3,3258.6,0.002]
[1767747915189,7.12850227,3259.5,3258.6,0.002]
[1767747915695,0.99259187,3259.5,3258.6,0.002]
[1767747916614,0.03835061,3259.4,3258.6,0.002]
[1767747918087,0.17955919,3259.6,3258.6,0.94626057]
[1767747918415,0.03834944,3259.5,3258.6,0.94626057]
[1767747918599,0.03834708,3259.7,3258.6,0.94626057]
[1767747919191,0.03834708,3259.7,3258.9,0.002]
[1767747920195,7.12831403,3259.6,3258.9,0.002]
[1767747920414,0.03834944,3259.5,3258.9,0.002]
[1767747921293,0.03835061,3259.4,3258.9,0.002]
[1767747922333,1.03094248,3259.4,3258.6,0.002]
[1767747922547,0.99259187,3259.3,3258.6,0.002]
[1767747922710,0.03835297,3259.2,3258.6,0.002]
[1767747924096,0.99259187,3259.0,3258.6,0.002]
[1767747924421,0.99259187,3259.4,3258.6,0.002]
[1767747924659,1.03094366,3259.3,3258.6,0.002]
[1767747926124,4.09912994,3259.3,3258.6,0.002]
[1767747928006,7.16731622,3259.3,3258.6,0.002]
[1767747928204,7.12896443,3259.3,3258.6,0.002]
[1767747928527,0.71289644,3259.2,3258.6,0.002]
[1767747928708,0.71289644,3259.2,3258.3,0.002]
[1767747928709,0.99259187,3259.0,3258.3,0.002]
[1767747929018,0.71289644,3259.2,3258.3,0.002]
[1767747929224,0.03835414,3259.1,3258.3,0.94626057]
[1767747929520,0.71289644,3259.2,3258.3,0.94626057]
[1767747929732,3.06815406,3259.3,3258.3,1.65493907]
[1767747930536,0.03835297,3259.2,3258.3,4.72395053]
[1767747931235,0.03835297,3259.2,3258.9,0.002]
[1767747931598,0.03935297,3259.2,3258.9,0.002]
[1767747932695,0.001,3259.2,3258.9,0.002]
[1767747932930,0.03935297,3259.2,3258.5,0.002]
[1767747933223,0.001,3259.2,3258.5,0.002]
[1767747933725,0.03935297,3259.2,3258.5,0.002]
[1767747933924,3.37999686,3259.2,3258.5,0.002]
[1767747934126,0.97740714,3259.1,3258.5,0.002]
[1767747934348,0.97740714,3258.9,3258.5,0.002]
[1767747934548,0.03835532,3259.0,3258.5,0.002]
[1767747934699,1.28916163,3259.2,3258.5,0.002]
[1767747935204,0.97740714,3259.0,3258.5,0.002]
[1767747935414,0.0383565,3258.9,3258.5,0.002]
[1767747935816,0.001,3259.2,3258.5,0.002]
[1767747936025,0.76588314,3259.1,3258.5,0.002]
[1767747936219,0.001,3259.2,3258.5,0.97770245]
[1767747936731,0.001,3259.2,3258.7,0.97570245]
[1767747936938,0.76588314,3260.5,3259.2,0.97570245]
[1767747937240,3.06648059,3261.1,3259.7,0.97570245]
[1767747937411,0.804,3261.3,3259.9,0.97570245]
[1767747938638,6.13271188,3261.2,3260.0,3.06748466]
[1767747938943,0.69367119,3261.1,3260.1,0.97570245]
[1767747940832,0.69367119,3261.1,3260.3,0.97570245]
[1767747941037,0.804,3261.3,3260.3,0.97570245]
[1767747941632,3.06641613,3261.2,3260.3,0.97570245]
[1767747941930,3.06603547,3261.6,3260.3,0.97570245]
[1767747942137,3.06603547,3261.6,3260.5,0.97570245]
[1767747942309,0.30660355,3261.5,3260.5,0.97570245]
[1767747943038,3.37271285,3261.5,3260.5,4.04263147]
[1767747943846,0.30660355,3261.5,3260.6,0.97570245]
[1767747944146,0.001,3260.8,3260.5,4.04263147]
[1767747944354,3.06590747,3261.7,3260.6,0.97570245]
[1767747945640,3.06590747,3261.7,3260.4,0.03990178]
[1767747945641,6.13181494,3261.7,3260.4,4.08268294]
[1767747945813,6.13181494,3261.7,3260.5,3.06697407]
[1767747946230,6.13181494,3261.7,3260.6,3.06691373]
[1767747946436,0.69348149,3261.6,3260.6,3.06691373]
[1767747946745,0.69348149,3261.6,3260.5,0.97570245]
[1767747947345,0.69348149,3261.6,3260.5,4.04266031]
[1767747947517,3.75950232,3261.6,3260.6,4.05359056]
[1767747947720,3.75950232,3261.6,3260.7,0.98667322]
[1767747947921,0.68253911,3261.5,3260.7,0.98667322]
[1767747948341,0.803,3261.8,3260.7,0.98667322]
[1767747948556,0.001,3261.9,3260.6,6.13383753]
[1767747948557,0.001,3261.9,3260.9,0.98667322]
[1767747949232,0.001,3261.9,3261.0,0.03990178]
[1767747949427,0.001,3261.9,3261.1,0.98667322]
[1767747949627,0.001,3261.9,3261.2,0.98667322]
[1767747949628,0.30765247,3261.9,3261.2,0.98667322]
[1767747949846,0.30765247,3261.9,3260.8,0.03990178]
[1767747949847,6.13255162,3261.9,3260.8,0.98667322]
[1767747950419,10.04132988,3261.9,3260.2,0.03990178]
[1767747950619,0.84300245,3261.8,3260.4,0.98667322]
[1767747950947,0.803,3261.7,3260.4,0.98667322]
[1767747951148,0.803,3261.7,3260.9,0.98667322]
[1767747951548,6.13195976,3261.6,3260.5,4.0536817]
[1767747951719,0.69349598,3261.5,3260.6,0.98667322]
[1767747952046,0.69349598,3261.5,3260.7,0.98667322]
[1767747952247,3.06587383,3261.8,3260.9,0.98667322]
[1767747952757,3.06671192,3261.9,3261.0,0.98667322]
[1767747952918,0.001,3261.9,3261.0,0.98667322]
[1767747953259,3.06670271,3261.9,3261.0,0.98667322]
[1767747953635,0.001,3261.9,3261.1,4.05312319]
[1767747953942,0.306663,3261.8,3261.2,0.98667322]
[1767747954137,0.001,3261.9,3261.1,3.06644997]
[1767747955724,0.001,3261.9,3261.1,6.13289994]
[1767747955926,0.001,3261.9,3261.1,7.11957316]
[1767747956148,0.001,3261.6,3261.2,0.98667322]
[1767747957957,0.001,3261.6,3261.3,3.06626192]
[1767747958155,0.001,3261.6,3261.4,0.98667322]
[1767747958364,0.001,3261.9,3261.4,0.98667322]
[1767747958670,0.001,3262.2,3261.4,0.803]
[1767747958831,0.001,3262.2,3261.8,0.98667322]
[1767747959658,0.001,3262.9,3262.0,0.98667322]
[1767747960030,0.001,3262.9,3262.0,4.05224233]
[1767747960331,0.001,3262.9,3262.0,4.05227513]
[1767747960659,0.001,3262.9,3262.1,0.98667322]
[1767747962028,0.001,3262.9,3262.2,0.96178352]
[1767747962936,0.001,3262.9,3261.8,0.96178352]
[1767747963334,0.001,3262.9,3261.8,0.95978353]
[1767747963764,0.001,3262.9,3261.8,0.95778354]
[1767747964361,0.84800243,3262.8,3261.4,3.86912692]
[1767747964569,0.84800243,3262.6,3261.4,3.86912692]
[1767747964937,0.69785191,3262.7,3261.4,0.90740551]
[1767747965349,0.69785191,3262.7,3261.4,3.97356487]
[1767747966077,0.69785191,3262.7,3261.7,0.90740551]
[1767747966261,0.001,3262.9,3261.9,0.94730729]
[1767747967539,0.001,3262.9,3262.2,0.90740551]
[1767747967936,0.001,3262.9,3262.4,0.90740551]
[1767747968172,0.001,3262.9,3262.5,6.13026818]
[1767747968352,3.86711835,3263.6,3262.7,0.90740551]
[1767747968650,6.9312367,3263.6,3262.3,0.90740551]
[1767747968852,6.9312367,3263.6,3262.4,0.90740551]
[1767747969059,6.9312367,3263.6,3262.4,3.97263145]
[1767747969259,6.9312367,3263.6,3262.4,0.90740551]
[1767747969460,0.69312367,3263.5,3262.4,0.90740551]
[1767747970682,6.12857754,3263.4,3262.4,0.90740551]
[1767747972094,3.06428877,3263.4,3262.4,3.97262157]
[1767747972592,3.06428877,3263.4,3262.5,3.97252532]
[1767747972743,3.75733511,3263.5,3262.6,0.90740551]
[1767747973372,0.69312367,3263.5,3262.7,0.90740551]
[1767747973572,3.06404562,3263.7,3262.7,0.90740551]
[1767747973946,3.06404562,3263.7,3262.8,0.90740551]
[1767747974345,3.06381935,3263.9,3262.8,0.803]
[1767747974874,6.97564113,3263.9,3262.9,0.3867941]
[1767747975079,6.97564113,3263.9,3262.8,3.86784839]
[1767747975378,3.91182178,3263.9,3262.8,3.86784839]
[1767747975671,6.97564113,3263.9,3262.8,0.803]
[1767747976080,6.97564113,3263.9,3262.8,3.86782737]
[1767747976582,6.97564113,3263.9,3262.8,0.803]
[1767747976791,3.0640071,3263.7,3262.6,4.40954461]
[1767747976998,0.84800243,3263.6,3262.8,0.803]
[1767747977344,6.1280142,3263.7,3262.8,0.803]
[1767747977548,6.1280142,3263.7,3262.6,0.39725253]
[1767747977977,6.1280142,3263.7,3262.5,1.71040551]
[1767747978173,6.1280142,3263.7,3262.6,0.03990178]
[1767747978351,6.1280142,3263.7,3262.6,3.10494149]
[1767747978551,6.1280142,3263.7,3262.6,4.012347]
[1767747978781,6.1280142,3263.7,3262.6,0.94730729]
[1767747978981,6.81057203,3263.7,3262.6,1.42884716]
[1767747979655,6.81057203,3263.7,3262.6,4.49388339]
[1767747979887,6.81057203,3263.7,3262.6,1.42884716]
[1767747980291,0.001,3263.3,3262.1,0.94730729]
[1767747980585,0.001,3263.3,3262.3,0.94730729]
[1767747980773,0.001,3263.3,3262.3,0.90740551]
[1767747984487,0.84900243,3263.3,3262.1,0.03990178]
[1767747984857,6.97695559,3263.2,3262.1,0.03990178]
[1767747985052,0.69779556,3263.1,3262.1,0.03990178]
[1767747985252,0.69779556,3263.1,3262.1,0.94730729]
[1767747985562,0.001,3263.3,3262.7,0.03990178]
[1767747985984,3.06541604,3263.3,3262.7,0.03990178]
[1767747986185,0.001,3263.3,3262.4,0.803]
[1767747986666,6.12984228,3263.3,3262.2,3.06541597]
[1767747986870,6.12984228,3263.3,3262.3,1.20427233]
[1767747987071,0.001,3263.3,3262.3,2.11167784]
[1767747987286,0.001,3263.3,3262.4,0.90740551]
[1767747989086,0.84800243,3263.2,3261.8,0.90740551]
[1767747990690,0.84800243,3263.2,3260.9,0.03990178]
[1767747990891,0.84800243,3263.0,3261.2,3.06629281]
[1767747991060,7.78051911,3262.9,3261.4,0.90740551]
[1767747991893,10.84527745,3262.9,3261.4,0.90740551]
[1767747992074,0.84800243,3262.8,3261.4,0.90740551]
[1767747992463,0.84800243,3262.8,3261.4,0.9063947]
[1767747992675,1.93354098,3262.7,3261.4,0.9063947]
[1767747993081,6.1300803,3262.6,3261.4,0.90539175]
[1767747993277,0.85001619,3262.5,3261.5,0.03066073]
[1767747993464,0.001,3263.0,3261.5,0.03066073]
[1767747993465,0.001,3263.0,3262.1,0.9404172]
[1767747993664,0.85001619,3264.1,3262.5,0.9404172]
[1767747993868,6.12707554,3264.2,3262.5,0.9404172]
[1767747993869,0.69770917,3264.0,3262.5,0.9404172]
[1767747994089,0.69770917,3264.0,3262.5,0.97106853]
[1767747994597,0.85001619,3263.9,3262.5,0.97106853]
[1767747994765,0.85001619,3263.9,3262.4,0.803]
[1767747994967,0.85001619,3263.7,3262.4,3.86819027]
[1767747995298,0.69778426,3263.6,3262.6,0.9404172]
[1767747995886,3.06391322,3263.8,3262.6,0.9404172]
[1767747996674,3.06385984,3263.9,3262.6,0.9404172]
[1767747996877,6.12771968,3263.9,3262.6,0.9404172]
[1767747997077,6.12771968,3263.9,3262.6,4.00543375]
[1767747997404,6.12771968,3263.9,3262.7,0.9404172]
[1767747997575,0.98891585,3263.8,3262.7,0.9404172]
[1767747998597,3.76143883,3264.0,3262.7,0.9404172]
[1767747998598,3.0637597,3264.0,3262.7,0.97106666]
[1767747998904,6.1275194,3264.0,3262.7,0.9404172]
[1767747999268,3.06359205,3264.2,3262.8,0.9404172]
[1767747999602,0.91914799,3264.1,3262.8,0.9404172]
[1767747999777,0.85001619,3264.0,3262.8,0.9404172]
[1767747999979,0.85001619,3264.0,3262.3,0.9404172]
[1767748000291,0.91914799,3264.1,3261.9,0.9404172]
[1767748000292,0.85001619,3263.8,3261.9,0.9404172]
[1767748000604,0.85001619,3263.8,3260.9,0.04190178]
[1767748000605,0.85001619,3263.6,3261.5,0.9404172]
[1767748000804,0.85001619,3263.4,3261.5,0.9404172]
[1767748001311,0.85001619,3263.2,3261.5,0.9404172]
[1767748001504,0.85001619,3263.0,3261.5,0.9404172]
[1767748002106,0.85001619,3263.0,3261.0,0.9404172]
[1767748002305,0.88991797,3263.0,3261.0,0.9404172]
[1767748002471,0.88991797,3263.0,3260.9,0.002]
[1767748002472,0.88991797,3262.8,3260.9,0.002]
[1767748002672,0.88991797,3262.8,3260.9,0.9424172]
[1767748002891,0.85001619,3262.8,3261.0,0.9404172]
[1767748003095,0.803,3262.7,3261.0,0.9404172]
[1767748003317,9.19512045,3262.6,3261.1,0.9404172]
[1767748003477,0.99981205,3262.5,3261.1,0.9404172]
[1767748003805,0.99981205,3262.5,3261.1,0.97108169]
[1767748003992,0.99981205,3262.5,3261.1,0.9404172]
[1767748004189,0.99981205,3262.5,3261.3,0.9404172]
[1767748004594,0.99981205,3262.5,3261.1,0.9404172]
[1767748004783,0.71298924,3262.4,3261.3,0.9404172]
[1767748005103,0.71298924,3262.4,3261.4,0.002]
[1767748005404,3.06532201,3262.3,3261.4,0.9424172]
[1767748005710,6.13064402,3262.3,3261.4,0.9424172]
[1767748005916,3.06532201,3262.3,3261.4,0.9424172]
[1767748006074,0.68435615,3262.2,3261.4,0.9424172]
[1767748007414,3.06550994,3262.1,3261.4,0.9424172]
[1767748008314,3.06550994,3262.1,3261.4,0.002]
[1767748008615,6.13101988,3262.1,3261.4,0.002]
[1767748008821,3.74981466,3262.2,3261.4,0.002]
[1767748008997,0.85001619,3262.0,3261.0,0.002]
[1767748009411,6.13120784,3262.0,3261.0,0.002]
[1767748010684,9.19681176,3262.0,3261.0,0.002]
[1767748011011,1.30653765,3261.9,3261.0,0.002]
[1767748011585,6.13158378,3261.8,3261.0,0.002]
[1767748012119,6.13158378,3261.8,3261.0,0.9424172]
[1767748012318,3.06579189,3261.8,3261.0,0.9424172]
[1767748013415,3.06579189,3261.8,3261.0,0.002]
[1767748013719,3.67904581,3261.7,3261.0,0.002]
[1767748014014,3.62904581,3261.7,3261.0,0.002]
[1767748014211,3.91519137,3262.5,3261.0,0.9424172]
[1767748014405,0.803,3262.4,3261.0,0.9424172]
[1767748014604,0.85101619,3263.5,3261.6,0.979318]
[1767748014786,0.85001619,3263.3,3261.8,0.9404172]
[1767748014985,0.85001619,3263.1,3261.4,1.7434172]
[1767748015607,6.97934501,3263.0,3261.5,7.07256498]
[1767748015989,6.12932882,3263.0,3261.6,0.9404172]
[1767748017718,6.12932882,3263.0,3261.8,0.9404172]
[1767748019125,6.13032882,3263.0,3261.8,0.9404172]
[1767748019298,0.69333288,3262.9,3261.8,0.9404172]
[1767748020115,0.001,3263.0,3262.0,0.9404172]
[1767748020526,0.001,3263.0,3262.2,0.9404172]